Cogmind - Beta 15 *** ADVENTURER MODE // 2025.07.03 @ 15:34:19 Player: MirenBlacksword Result: Destroyed by G-47 Trooper with Particle Gun Performance ------------- Evolutions (2) 1000 Regions Visited (4) 800 Robots Destroyed (45) 225 Value Destroyed (1172) 1172 Prototype IDs (0) 0 Alien Tech Used (0) 0 Bonus (200) 200 TOTAL SCORE: 3397 Bonus ------- Entered Garrisons 200 Cogmind --------- Core Integrity 0/550 Matter 300/300 Energy 100/100 System Corruption 0% Temperature Cool (36) Movement Core (200) Ox3 Location -8/Garrison Parts ------- > --- POWER (2) -------- (None) > --- PROPULSION (2) --- (None) > --- UTILITY (3) ------ Medium Storage Unit > --- WEAPON (4) ------- (None) > --- INVENTORY (10) --- Ion Engine Improved Heat Sink Disposable Heat Sink Small Storage Unit Structural Scanner Improved Terrain Scanner Peak State ------------ > --- POWER ------------ Improved Ion Engine Light Nuclear Core > --- PROPULSION ------- Aluminum Leg Improved Aluminum Leg > --- UTILITY ---------- Improved Heat Sink Medium Storage Unit Improved Terrain Scanner > --- WEAPON ----------- Beam Rifle Beam Rifle Assault Cannon Heavy Mace > --- INVENTORY -------- Ion Engine Ion Engine Light Ion Engine Cryofiber Web Disposable Heat Sink Small Storage Unit Visual Processing Unit Core Shielding Medium Armor Plating Datajack [Rating: 26] Favorites ----------- Power Ion Engine Engine Ion Engine Power Core Light Nuclear Core Propulsion Aluminum Leg Leg Aluminum Leg Wheel Wheel Flight Unit Flight Unit Utility Improved Terrain Scanner Device Improved Terrain Scanner Storage Medium Storage Unit Processor Signal Interpreter Protection Core Shielding Weapon Beam Rifle Energy Gun Beam Rifle Energy Cannon Particle Cannon Ballistic Gun Light Assault Rifle Ballistic Cannon Assault Cannon Launcher Grenade Launcher Special Weapon Mining Laser Impact Weapon Heavy Mace Special Melee Weapon Datajack Build | -11 -10 -9 -8 -8 ------- Run | Yrd Mat Mat Mat Gar Slots Evolved 4 | . . 2 2 . Power 1 | . . 1 . . Propulsion . | . . . . . Utility 1 | . . 1 . . Weapon 2 | . . . 2 . Parts Attached 45 | 9 5 14 15 2 Power 7 | 2 . 1 3 1 Engine 6 | 2 . 1 2 1 Core 1 | . . . 1 . Reactor . | . . . . . Propulsion 10 | 2 . 4 4 . Treads . | . . . . . Leg 5 | 2 . 2 1 . Wheel 2 | . . . 2 . Hover . | . . . . . Flight 3 | . . 2 1 . Utility 13 | 2 2 4 5 . Device 7 | 2 1 1 3 . Storage 2 | . 1 1 . . Processor 1 | . . 1 . . Hackware . | . . . . . Protection 3 | . . 1 2 . Artifact . | . . . . . Weapon 15 | 3 3 5 3 1 Energy Gun 3 | 1 . 2 . . Energy Cannon 1 | . . 1 . . Ballistic Gun 3 | 2 . . 1 . Ballistic Cannon 1 | . . . 1 . Launcher 1 | . . 1 . . Special Weapon 3 | . 2 . . 1 Impact Weapon 1 | . . . 1 . Slashing Weapon . | . . . . . Piercing Weapon . | . . . . . Special Melee Weapon 2 | . 1 1 . . Unidentified Prototypes . | . . . . . Parts Lost 17 | . . 2 2 13 Power 4 | . . . 1 3 Propulsion 2 | . . . . 2 Utility 3 | . . 1 . 2 Weapon 8 | . . 1 1 6 Highest Loss Streak 13 | . . 1 1 13 To Critical Strikes . | . . . . . Average Backups 6 | 1 6 7 9 8 Power . | . . . 1 1 Propulsion . | . . . . . Utility 3 | . 2 3 6 5 Weapon 1 | 1 2 1 . . Tool/Special . | . . . . . Unused Backups 4 | . . 1 3 . Power . | . . . . . Propulsion 1 | . . 1 . . Utility 3 | . . . 3 . Weapon . | . . . . . Tool/Special . | . . . . . Average Slot Usage (%) 95 | . 100 94 98 70 Engine 15 | . 14 17 15 12 Leg 18 | . 28 21 13 . Wheel 2 | . . . 4 13 Device 13 | . 20 15 10 4 Storage 9 | . 7 10 9 9 Protection 5 | . . 6 7 9 Energy Gun 11 | . . 14 16 3 Ballistic Gun 9 | . 26 4 2 6 Ballistic Cannon 3 | . . . 7 3 Impact Weapon 2 | . . . 4 8 Special Melee Weapon 1 | . . . 4 . Peak Build Rating 26 | 9 10 16 26 20 Average Rating 13 | 5 9 13 21 13 On Entrance 10 | . 9 8 16 20 Naked Turns . | . . . . . Heaviest Build 44 | 9 13 28 44 36 Greatest Support 26 | 20 20 26 26 26 Greatest Overweight (x) 5 | . . 5 2 4 Average Overweight (x) . | . . . 1 1 Largest Inventory Capacity 10 | 5 8 10 10 10 Average Capacity 8 | 5 6 8 10 10 Most Carried 10 | 5 8 10 10 9 Average Carried 6 | 1 6 7 9 8 Final Capacity 10 | 5 8 10 10 10 Final Carried 10 | 5 8 10 9 6 Class Distribution -------------------- 46% | Mutant 21% | Scavenger-Tank 20% | Scavenger-Mutant 11% | Scavenger-Skirmisher Dominant Class ---------------- Mutant | -10/Materials Scavenger-Mutant | -9/Materials Scavenger-Tank | -8/Materials Mutant | -8/Garrison Resources | -11 -10 -9 -8 -8 ----------- Run | Yrd Mat Mat Mat Gar Matter Collected 1304 | 322 75 283 568 56 Remotely . | . . . . . Salvage Created 1521 | 132 75 367 842 105 Parts 105 | 18 4 27 51 5 Haulers Intercepted . | . . . . . Recyclers Shooed 2 | . . 2 . . Parts Field Recycled . | . . . . . Retrieved Matter . | . . . . . Parts Self-Destructed . | . . . . . Prevented . | . . . . . Kills | -11 -10 -9 -8 -8 ------- Run | Yrd Mat Mat Mat Gar Combat Hostiles Destroyed 29 | 1 . 11 15 2 Melee 1 | . . . . 1 Guns 14 | 1 . 5 7 1 Cannons 12 | . . 4 8 . AOE 2 | . . 2 . . Classes Destroyed 10 | 3 2 3 2 . Worker 4 | 1 . . 3 . Builder 3 | . . . 3 . Tunneler 4 | 4 . . . . Recycler 3 | . 1 . 2 . Watcher 2 | . 1 . 1 . Swarmer 7 | . . 4 3 . Grunt 13 | 1 . 4 7 1 Duelist 1 | . . 1 . . Sentry 7 | . . 2 4 1 Hunter 1 | . . . 1 . Best Kill Streak 10 | 4 2 4 10 1 Combat Bots Only 6 | 1 . 4 6 1 Max Kills in Single Turn 3 | 1 1 2 3 1 Gunslinging 1 | . . 1 . . Exploded 2 | . . 2 . . Melee 1 | . . . . 1 Uniques/NPCs Destroyed . | . . . . . Combat | -11 -10 -9 -8 -8 -------- Run | Yrd Mat Mat Mat Gar Hostile Shots Fired 313 | 3 . 62 98 150 Missed 83 | 2 . 13 26 42 Hits 230 | 1 . 49 72 108 Melee 2 | . . 2 . . Projectile 228 | 1 . 47 72 108 Critical Strikes 11 | . . 2 5 4 Actively Blocked 2 | . . . . 2 Damage Taken 2501 | 8 . 561 771 1161 Core 683 | . . 129 34 520 Absorbed by Shields 49 | . . . . 49 Redirected to Shielding 42 | . . 1 . 41 Ignored by Resistances 747 | 2 . 166 226 353 Core Remaining (%) 89 | 100 100 67 . . Volleys Fired 108 | 16 16 19 43 14 Largest 3 | 2 2 2 3 2 Hottest 200 | 40 200 124 149 62 Shots Fired 245 | 32 31 37 129 16 Gun 182 | 32 29 21 86 14 Cannon 57 | . . 12 43 2 Launcher 4 | . . 4 . . Special 2 | . 2 . . . Kinetic 141 | 32 29 3 61 16 Thermal 89 | . 2 25 62 . Explosive 4 | . . 4 . . Electromagnetic 11 | . . 5 6 . Robot Hit Streak 13 | 10 6 13 9 8 Robot Miss Streak 3 | 1 1 2 3 1 Penetration Max . | . . . . . Secondary Targets 1 | . . 1 . . Max Gunslinging Chain 1 | . . 1 . . Shots Hit Robots 170 | 23 21 28 82 16 Core Hits 73 | 10 4 17 36 6 Critical Kills . | . . . . . Critical Parts Destroyed 1 | 1 . . . . Critical Strikes 5 | 1 . . 4 . Burn 3 | . . . 3 . Destroy 1 | 1 . . . . Blast 1 | . . . 1 . Melee Attacks 6 | . . 2 1 3 Impact 4 | . . . 1 3 Slashing . | . . . . . Piercing . | . . . . . Sneak Attacks 1 | . . . 1 . Combat Hostiles . | . . . . . Follow-up Attacks . | . . . . . Damage Inflicted 3104 | 190 184 558 1745 427 Guns 1586 | 190 160 203 824 209 Cannons 1019 | . . 204 770 45 Explosions 247 | . . 139 108 . Melee 216 | . . . 43 173 Ramming 12 | . . 12 . . Kinetic 1590 | 190 160 12 974 254 Thermal 1148 | . 24 435 689 . Explosive 54 | . . 54 . . Electromagnetic 84 | . . 45 39 . Impact 216 | . . . 43 173 Slashing . | . . . . . Piercing . | . . . . . Highest Corruption . | . . . . . Average Corruption . | . . . . . Corruption Purged . | . . . . . Corruption Blocked . | . . . . . Overload Shots . | . . . . . Overflow Damage 90 | . 7 32 30 21 Projectiles 15 | . 7 . 8 . Explosions 51 | . . 32 19 . Melee 24 | . . . 3 21 Knockbacks 8 | . . . 6 2 Impact 2 | . . . 1 1 Kinetic 6 | . . . 5 1 Secondary . | . . . . . Self-Inflicted Damage 73 | . . 73 . . Shots 3 | . . 3 . . Rammed . | . . . . . Targets Rammed 5 | . . 5 . . Kicked 5 | . . 5 . . Crushed . | . . . . . Highest Temperature 517 | 6 56 193 517 24 Average Temperature 133 | 6 31 60 178 9 Received Heat Transfer 1377 | 6 . 258 387 726 Effects 12 | . . . 12 . Shutdowns 3 | . . . 3 . Energy Bleed 6 | . . . 6 . Interference 1 | . . . 1 . Matter Decay 1 | . . . 1 . Short Circuit 1 | . . . 1 . Siege Activations . | . . . . . Martial Activations . | . . . . . Shielding Activations . | . . . . . Robots Disrupted . | . . . . . Combat Hostiles . | . . . . . Robots Corrupted . | . . . . . Combat Hostiles . | . . . . . Parts Fried . | . . . . . Impact Corruptions 2 | . . . 1 1 Robots Melted . | . . . . . Combat Hostiles . | . . . . . Parts Melted 4 | . . 2 2 . Heat Transferred 2642 | . 50 790 1802 . Parts Sabotaged . | . . . . . Parts Stolen . | . . . . . Parts Stripped . | . . . . . Power Chain Reactions 2 | . . 1 1 . Alert | -11 -10 -9 -8 -8 ------- Run | Yrd Mat Mat Mat Gar Maximum Alert Level 1 | . . . 1 1 Low Security (%) 97 | 100 100 100 95 85 Level 1 2 | . . . 4 14 Level 2 . | . . . . . Level 3 . | . . . . . Level 4 . | . . . . . Level 5 . | . . . . . High Security . | . . . . . Max Security . | . . . . . Peak Influence 238 | 25 7 187 238 211 Initial 129 | . . . 36 129 Average 54 | 2 . 100 59 168 Influence Increases 1009 | 45 15 339 478 132 Destroy 0b10 Robot/C 580 | 20 . 220 300 40 Destroy 0b10 Robot/NC 80 | 25 10 . 45 . Destroy Leader 134 | . 2 50 82 . Successful Hack 37 | . 3 22 . 12 Disable Machine 18 | . . 9 9 . Anti-Garrison Action 50 | . . . . 50 Destroy Structure 35 | . . 23 12 . Lose Combat Pursuer 75 | . . 15 30 30 Influence Decreases 878 | 45 15 236 353 229 Entered New Map 166 | . . . 67 99 Time Decay 542 | 45 15 216 266 . Lost Part 170 | . . 20 20 130 Squads Dispatched 3 | . . . 3 . Investigation 1 | . . . 1 . Extermination . | . . . . . Reinforcement 1 | . . . 1 . Assault . | . . . . . Garrison 1 | . . . 1 . Intercept . | . . . . . Searches Triggered . | . . . . . Construction Impeded . | . . . . . Haulers Reinforced . | . . . . . Active Scanning Responses . | . . . . . Cargo Convoy Interrupts . | . . . . . Stealth | -11 -10 -9 -8 -8 --------- Run | Yrd Mat Mat Mat Gar Distress Signals 1 | . . . 1 . Communications Jammed . | . . . . . Distress Signals . | . . . . . Times Spotted 53 | 1 6 14 19 13 Peak Tracking Total 10 | 1 3 5 4 10 Tactical Retreats 5 | . . 1 2 2 Traps | -11 -10 -9 -8 -8 ------- Run | Yrd Mat Mat Mat Gar Traps Triggered 3 | . . 1 1 1 Indirectly . | . . . . . Trap Hack Attempts . | . . . . . Triggered . | . . . . . Disarmed . | . . . . . Reprogrammed . | . . . . . Reused . | . . . . . Traps Extracted . | . . . . . Installed . | . . . . . Triggered . | . . . . . Machines | -11 -10 -9 -8 -8 ---------- Run | Yrd Mat Mat Mat Gar Machines Disabled 2 | . . 1 1 . Max in Single Turn 1 | . . 1 1 . Machines Repaired . | . . . . . Machines Dismantled . | . . . . . Machines Sabotaged . | . . . . . Overloaded Fab Kills . | . . . . . Hacking | -11 -10 -9 -8 -8 --------- Run | Yrd Mat Mat Mat Gar Machines Accessed 7 | . 2 3 1 1 Terminals 6 | . 2 3 . 1 Fabricators . | . . . . . Repair Stations . | . . . . . Recycling Units . | . . . . . Scanalyzers . | . . . . . Garrison Access 1 | . . . 1 . Total Hacks 12 | . 4 4 1 3 Successful 8 | . 4 2 1 1 Failed 4 | . . 2 . 2 Catastrophic . | . . . . . Database Lockouts . | . . . . . Manual . | . . . . . Terminals 11 | . 4 4 . 3 Fabricators . | . . . . . Repair Stations . | . . . . . Recycling Units . | . . . . . Scanalyzers . | . . . . . Garrison Access 1 | . . . 1 . Terminal Hacks 7 | . 4 2 . 1 Record 4 | . 4 . . . Emergency Access Points 1 | . . . . 1 Repair Station Index 1 | . . 1 . . Security Status 1 | . . 1 . . Fabricator Hacks . | . . . . . Repair Station Hacks . | . . . . . Recycling Unit Hacks . | . . . . . Scanalyzer . | . . . . . Garrison Access Hacks 1 | . . . 1 . Unlock Access 1 | . . . 1 . Unauthorized Hacks . | . . . . . Terminals . | . . . . . Fabricators . | . . . . . Repair Stations . | . . . . . Recycling Units . | . . . . . Scanalyzers . | . . . . . Garrison Access . | . . . . . Data Cores Recovered . | . . . . . Used . | . . . . . Hacking Detections 3 | . . 1 1 1 Full Trace Events 1 | . . . . 1 Feedback Events . | . . . . . Feedback Blocked . | . . . . . Robot Schematics Acquired . | . . . . . Robots Built . | . . . . . Authchips . | . . . . . Time . | . . . . . Total Robot Build Rating . | . . . . . Part Schematics Acquired . | . . . . . Parts Built . | . . . . . Authchips . | . . . . . Time . | . . . . . Total Part Build Rating . | . . . . . Parts Repaired . | . . . . . Time . | . . . . . Parts Recycled . | . . . . . Recycled Matter . | . . . . . Retrieved Matter . | . . . . . Retrieved Components . | . . . . . Parts Scanalyzed . | . . . . . Part Schematics Acquired . | . . . . . Parts Damaged . | . . . . . Bothacking | -11 -10 -9 -8 -8 ------------ Run | Yrd Mat Mat Mat Gar Used RIF Installer . | . . . . . Robots Hacked 1 | . . 1 . . Non-combat . | . . . . . Combat 1 | . . 1 . . Robot Hacks Applied 2 | . . 2 . . parse_system 2 | . . 2 . . Relay Couplers Released . | . . . . . Fabnet Peak Effective % . | . . . . . Robots Rewired . | . . . . . Allies Hacked . | . . . . . Hacks Repelled . | . . . . . Allies | -11 -10 -9 -8 -8 -------- Run | Yrd Mat Mat Mat Gar Total Allies . | . . . . . Largest Group . | . . . . . Highest-Rated Group . | . . . . . Highest-Rated Ally . | . . . . . Total Orders . | . . . . . Ally Attacks . | . . . . . Total Damage . | . . . . . Kills . | . . . . . Allies Corrupted . | . . . . . Allies Melted . | . . . . . Intel | -11 -10 -9 -8 -8 ------- Run | Yrd Mat Mat Mat Gar Active Infowar (turns) 1720 | 100 405 510 653 52 Terrain 1399 | 24 358 508 509 . Structural 361 | . 47 118 144 52 Seismic 277 | 100 177 . . . Robot Analysis Total . | . . . . . Derelict Logs Recovered . | . . . . . Drone Launches . | . . . . . Drone Recoveries . | . . . . . Exploration | -11 -10 -9 -8 -8 ------------- Run | Yrd Mat Mat Mat Gar Turns Passed 2020 | 345 406 510 653 106 Spaces Moved 1163 | 251 273 308 280 51 Core 24 | 21 . . . 3 Treads . | . . . . . Legs 1001 | 230 273 305 193 . Wheels 135 | . . . 87 48 Hover . | . . . . . Flight 3 | . . 3 . . Fastest Speed 50 | 50 120 120 105 95 Average Speed 131 | 114 120 128 163 112 Slowest Speed 450 | 120 120 450 190 250 Overloaded Moves . | . . . . . Propulsion Burnouts . | . . . . . Robots Hopped . | . . . . . Potential Cave-ins . | . . . . . Cave-ins Triggered . | . . . . . Exploration Rate (%) 17 | 6 30 17 20 15 Regions Visited 4 Branch Regions . Pre-discovered Areas . | . . . . . Known Exits Taken 1 | . . . 1 . Unknown Exits Taken 3 | 1 1 1 . . Scrap Searched . | . . . . . Spaces Dug . | . . . . . Terrain Destroyed 39 | . . 29 10 . Melee . | . . . . . Projectile 4 | . . . 4 . AOE 35 | . . 29 6 . Terrain Rammed . | . . . . . Walls Destroyed . | . . . . . Machines Disabled . | . . . . . Actions | -11 -10 -9 -8 -8 --------- Run | Yrd Mat Mat Mat Gar Total 1441 | 280 321 384 375 81 Wait 21 | . 12 2 3 4 Move 1159 | 250 272 307 279 51 Hop . | . . . . . Pick Up 34 | 4 6 12 12 . Fast Attach 19 | 8 2 5 4 . Attach 13 | . 1 5 4 3 Detach 2 | . 1 1 . . Swap 37 | 1 6 13 16 1 Drop 32 | 1 5 13 13 . Fire 108 | 16 16 19 43 14 Melee 6 | . . 2 1 3 Ram . | . . . . . Kick 5 | . . 5 . . Crush . | . . . . . Escape Stasis 5 | . . . . 5 Rewire . | . . . . . Trap . | . . . . . Miscellaneous . | . . . . . Route ------- -11/Scrapyard -10/Materials -9/Materials -8/Materials -8/Garrison History --------- Turn | Location | Event 2 | -11/Scrapyard | Met Revision 17 84 | -11/Scrapyard | Discovered new exit (range 8) 346 | -11/Scrapyard | Entered Materials 347 | -10/Materials | Build established: Mutant 628 | -10/Materials | Discovered new exit (range 4) 752 | -10/Materials | Entered another Materials area 752 | -9/Materials | Evolved 2 slots: Power x1, Utility x1 1181 | -9/Materials | Discovered new exit (range 13) 1193 | -9/Materials | Build established: Scavenger-Mutant 1262 | -9/Materials | Entered another Materials area 1262 | -8/Materials | Evolved 2 slots: Weapon x2 1818 | -8/Materials | Garrison activated, responded to threat 1910 | -8/Materials | Identified exit to Garrison 1915 | -8/Materials | Entered Garrison 2009 | -8/Garrison | Core integrity fell below 50% 2019 | -8/Garrison | Core integrity fell below 20% 2021 | -8/Garrison | Destroyed by G-47 Trooper with Particle Gun Last Messages --------------- map in exchange for smaller text? Consider selecting a different UI Layout in the option menu. Lgt. Ion Engine destroyed. Field strength at 38. Wheel destroyed. Field strength at 27. Field strength at 10. Stasis field depleted. Datajack destroyed. Core Shielding destroyed. G-47 Trooper knocked back. Critical hit (Burn: +37). Welding Torch destroyed. Critical hit (Burn: +37). Destroyed Imp. Heat Sink. G-47 Trooper system corrupted by crushing effect. Hvy. Mace destroyed. [Achievement: First Step to Greatness] Map ----- +----------------------------------------------------+ | ?????????????????????????????????????????????????? | | ?????????????????????????????????????????????????? | | ?????????????????????????????????????????????????? | | +##??????????????????????????????????????????????? | | #??????????????????????????????????????????????? | | ##########+##??????????????????????????????????? | | #??????????????????????????????????? | | #??????????????????????????????????? | | ############ #??????????????????????????????????? | | ???????????# #??????????????????????????????????? | | ???????????# #????????????????????????+?????????? | | ???????????# ###????????????????????????????????? | | ???????????+ + ????????????????????????????????? | | ??????+????# ## ?????????????????+??????????????? | | ?????# ##### ##"########????????????????????????? | | ?????#^!%*[ #????????????????????????? | | ?????# #####% #????????????????????????? | | ??????????## ##+##### #?????????????????++?????? | | ??????????#T ## ????# #????????????????????????? | | ??????????## ## ???## #????????????????????????? | | ??????+????# ## ????+ #????????????????????????? | | ???????????# ##?????#= #??????????+?????????????? | | +??????????# #??????#% #??####??????????????????? | | ???????????# #??????#= #? #??????????????????? | | ???????????# #?????##g ## g ## #?????????????? | | ???????????# #?+???# gg@g #?????????????? | | ???????????+ g g s +?????????????? | | ???????????# g +?????????????? | | ???????????########## ## ^ ## #?????????????? | | ????????????????????# g #? ^#??? #?????????????? | | ??????????????????? ? ?????????????????? | | ??????????????????# ^? ???????????????? | | ??????????????????# ? ??????????????? | | ??????????????????# ? "?+???????????? | | ??????????????????### ##? ## #?????????????? | | ????????????????????# #?? #? #???+?????????? | | ????????????????????+ ??? ?? ?????????????? | | ????????????????????+ ??? ??? ??????????????? | | ????????????????????# ??? ?????????????????? | | ????????????????????# ????""??++?????+?????????? | | ????????????????????? ?????????????????????????? | | ?????????????????????????????????????????????????? | | ????????????????????+????????????????????????????? | | ?????????????????????????????????????????????????? | | ??+??????????????????????????????????????????????? | | ?????????????????????????????????????????????????? | | ????????????++???+????????????????????????+???+??? | | ??????????????????????????????????????????+???+??? | | ?????????????????????????????????????????????????? | | ?????????????????????????????????????????????????? | +----------------------------------------------------+ Best States ------------- Heat Dissipation 45 Coolant Potential 50 Energy Generation 21 Energy Capacity 415 Matter Stores 300 Matter Capacity 300 Sight Range 16 Terrain Scan Range 16 Terrain Scan Density 10 Armor Coverage 225 Resistance: KI 20 Resistance: TH 20 Resistance: EX 20 Resistance: EM 20 Resistance: I 20 Resistance: S 20 Resistance: P 20 Core Shielding 20 Evasion (%) 55 Offensive Hacking 10 Item Schematics ----------------- None Robot Schematics ------------------ None Fabricated ------------ Nothing Repaired ---------- Nothing Alien Tech Used ----------------- None Achievements -------------- Crack Shot First Step to Greatness Let's See Who's Tougher Troublemaker Uninvited Guest Challenges ------------ None Game ------ Seed DamperVoltaicJammer Manual? 0 Play Time 00:56:55 Cumulative 0.8 hours Start 2025.07.03 @ 14:35:30 End 2025.07.03 @ 15:34:19 Sessions 1 Manual Loads 0 Difficulty Adventurer Special Mode None Game No. 1 Rogue 0 Adventurer 1 Explorer 0 Win Type - Total 0 Types 0/0/0/0/0/0/0/0/0/0 Lore% 0 Gallery% 3 Achievement% 1 Wizard Run 0 Options --------- Layout 1 ASCII 0 Keyboard 0 Movement Arrows Keybinds 0 Fullscreen 1 Font 24/Smallcaps Map View 50x35 Zoom Use 1% Tactical HUD 0 Map Filters NONE Filters NONE Steam 1 RUN: c106f59a-9cb6-44d1-b9fd-28ffa1c65665